[Event "Live Chess"]
[Site "Chess.com"]
[Date "2023.05.21"]
[Round "-"]
[White "JackCheetham1"]
[Black "worldchessleaguelive"]
[Result "1-0"]
[WhiteElo "1696"]
[BlackElo "1340"]
[TimeControl "300"]
[EndTime "2:32:14 PDT"]
[Termination "JackCheetham1 won on time"]

1. e4 {[%clk 0:04:58.9]} 1... d5 {[%clk 0:04:58.7]} 2. exd5 {[%clk 0:04:57.7]}
2... Qxd5 {[%clk 0:04:57.7]} 3. Nc3 {[%clk 0:04:57]} 3... Qd8 {[%clk 0:04:56.5]}
4. d4 {[%clk 0:04:56]} 4... Nf6 {[%clk 0:04:55.8]} 5. Nf3 {[%clk 0:04:55.5]}
5... e6 {[%clk 0:04:55]} 6. Bd3 {[%clk 0:04:52.4]} 6... Be7 {[%clk 0:04:54.5]}
7. O-O {[%clk 0:04:51]} 7... h6 {[%clk 0:04:53.8]} 8. Re1 {[%clk 0:04:50.1]}
8... O-O {[%clk 0:04:52.8]} 9. Bf4 {[%clk 0:04:48.9]} 9... c6 {[%clk 0:04:50.8]}
10. h3 {[%clk 0:04:46.8]} 10... Nbd7 {[%clk 0:04:49.8]} 11. Qd2 {[%clk
0:04:45.3]} 11... Nd5 {[%clk 0:04:40.4]} 12. Nxd5 {[%clk 0:04:26.2]} 12... cxd5
{[%clk 0:04:36.2]} 13. c4 {[%clk 0:04:26.1]} 13... Bf6 {[%clk 0:04:24.4]} 14.
Rad1 {[%clk 0:04:18]} 14... dxc4 {[%clk 0:04:21.3]} 15. Bxc4 {[%clk 0:04:15.1]}
15... Nb6 {[%clk 0:04:20.2]} 16. Bb3 {[%clk 0:04:13.3]} 16... Bd7 {[%clk
0:04:18]} 17. Ne5 {[%clk 0:04:03.8]} 17... Qe7 {[%clk 0:04:00.5]} 18. Bc2 {[%clk
0:03:45.2]} 18... Bxe5 {[%clk 0:03:56.8]} 19. Bxe5 {[%clk 0:03:38.8]} 19... Nd5
{[%clk 0:03:53.1]} 20. Qd3 {[%clk 0:03:35.4]} 20... f5 {[%clk 0:03:48.5]} 21.
Qg3 {[%clk 0:03:31.7]} 21... Qg5 {[%clk 0:03:42.9]} 22. Qf3 {[%clk 0:03:13.6]}
22... Rac8 {[%clk 0:03:35.1]} 23. Bb3 {[%clk 0:03:08.3]} 23... Bc6 {[%clk
0:03:34.1]} 24. Qg3 {[%clk 0:03:01]} 24... f4 {[%clk 0:03:18.2]} 25. Qxg5 {[%clk
0:02:50.5]} 25... hxg5 {[%clk 0:03:16.2]} 26. Bd6 {[%clk 0:02:46.9]} 26... Rfe8
{[%clk 0:03:07.8]} 27. Re5 {[%clk 0:02:31.6]} 27... Rcd8 {[%clk 0:02:48.4]} 28.
Bc5 {[%clk 0:02:12.7]} 28... b6 {[%clk 0:02:45.7]} 29. Ba3 {[%clk 0:02:11.4]}
29... f3 {[%clk 0:02:34.7]} 30. Rxg5 {[%clk 0:01:59.5]} 30... fxg2 {[%clk
0:02:31.7]} 31. Rc1 {[%clk 0:01:46.3]} 31... Ba8 {[%clk 0:02:22.7]} 32. Bxd5
{[%clk 0:01:36.8]} 32... Bxd5 {[%clk 0:02:20.3]} 33. Rc7 {[%clk 0:01:34.6]}
33... g6 {[%clk 0:01:32.3]} 34. Rxg6+ {[%clk 0:01:28.8]} 34... Kh8 {[%clk
0:01:31.3]} 35. Rgg7 {[%clk 0:01:21.2]} 35... Be4 {[%clk 0:01:23.8]} 36. Rg4
{[%clk 0:00:45.3]} 36... Bf5 {[%clk 0:00:56.2]} 37. Rh4+ {[%clk 0:00:37.7]}
37... Kg8 {[%clk 0:00:52.7]} 38. Be7 {[%clk 0:00:21.1]} 38... Rc8 {[%clk
0:00:45.9]} 39. Rxc8 {[%clk 0:00:16.9]} 39... Rxc8 {[%clk 0:00:44.5]} 40. Bf6
{[%clk 0:00:16.5]} 40... Kf7 {[%clk 0:00:38.4]} 41. Be5 {[%clk 0:00:15.3]} 41...
Rc2 {[%clk 0:00:22.5]} 42. Kxg2 {[%clk 0:00:11.2]} 42... Rxb2 {[%clk 0:00:19.7]}
43. Rf4 {[%clk 0:00:08.1]} 43... Kg6 {[%clk 0:00:17.7]} 44. Rf3 {[%clk
0:00:06.7]} 44... Rxa2 {[%clk 0:00:15.8]} 45. Rg3+ {[%clk 0:00:06]} 45... Kf7
{[%clk 0:00:14.1]} 46. h4 {[%clk 0:00:05.4]} 46... Ra4 {[%clk 0:00:11.5]} 47. h5
{[%clk 0:00:04.5]} 47... a5 {[%clk 0:00:10.3]} 48. h6 {[%clk 0:00:03.6]} 48...
Ra2 {[%clk 0:00:06.6]} 49. Rg7+ {[%clk 0:00:02.5]} 49... Kf8 {[%clk 0:00:05]}
50. h7 {[%clk 0:00:01.5]} 50... Bxh7 {[%clk 0:00:04.1]} 51. Rxh7 {[%clk
0:00:01.4]} 51... Rb2 {[%clk 0:00:03]} 52. Rh8+ {[%clk 0:00:00.7]} 52... Kf7
{[%clk 0:00:00.4]} 53. Rb8 {[%clk 0:00:00.6]} 1-0

[Event "Live Chess"]
[Site "Chess.com"]
[Date "2023.05.21"]
[Round "-"]
[White "apl_trainer"]
[Black "mliszewski"]
[Result "1-0"]
[WhiteElo "1758"]
[BlackElo "1827"]
[TimeControl "300"]
[EndTime "2:32:17 PDT"]
[Termination "apl_trainer won by resignation"]

1. d4 {[%clk 0:04:57.7]} 1... d5 {[%clk 0:04:58.6]} 2. c4 {[%clk 0:04:56.5]}
2... e5 {[%clk 0:04:57.9]} 3. dxe5 {[%clk 0:04:54.7]} 3... d4 {[%clk 0:04:57.8]}
4. Nf3 {[%clk 0:04:53.3]} 4... Nc6 {[%clk 0:04:57.3]} 5. a3 {[%clk 0:04:51.2]}
5... a5 {[%clk 0:04:50.7]} 6. b3 {[%clk 0:04:46.1]} 6... Nh6 {[%clk 0:04:44.1]}
7. Bxh6 {[%clk 0:04:27.8]} 7... gxh6 {[%clk 0:04:41.8]} 8. g3 {[%clk 0:04:25.8]}
8... Bg4 {[%clk 0:04:30.6]} 9. Nbd2 {[%clk 0:04:22.8]} 9... Qd7 {[%clk
0:04:28.4]} 10. Bg2 {[%clk 0:04:19.9]} 10... Bg7 {[%clk 0:04:23.5]} 11. O-O
{[%clk 0:04:12.7]} 11... Bh3 {[%clk 0:04:20.4]} 12. Ne4 {[%clk 0:04:03.2]} 12...
Bxg2 {[%clk 0:04:18.5]} 13. Kxg2 {[%clk 0:04:02.1]} 13... h5 {[%clk 0:04:14.6]}
14. Nc5 {[%clk 0:03:51.4]} 14... Qf5 {[%clk 0:04:03]} 15. Nxd4 {[%clk
0:03:33.5]} 15... Nxd4 {[%clk 0:03:56.8]} 16. Qxd4 {[%clk 0:03:30.7]} 16... Bxe5
{[%clk 0:03:55.9]} 17. Qe3 {[%clk 0:03:22.6]} 17... Kf8 {[%clk 0:03:51.2]} 18.
Rad1 {[%clk 0:03:14.1]} 18... h4 {[%clk 0:03:48.1]} 19. Nxb7 {[%clk 0:02:52.1]}
19... Rg8 {[%clk 0:03:34.3]} 20. Qf3 {[%clk 0:02:41.7]} 20... h3+ {[%clk
0:03:15]} 21. Kg1 {[%clk 0:02:40]} 21... Qxf3 {[%clk 0:03:12.6]} 22. exf3 {[%clk
0:02:38.8]} 22... h5 {[%clk 0:03:08.9]} 23. f4 {[%clk 0:02:29.2]} 23... Bxf4
{[%clk 0:03:07.5]} 24. Rd7 {[%clk 0:02:20.7]} 24... h4 {[%clk 0:03:03.5]} 25.
Rfd1 {[%clk 0:02:16.9]} 25... hxg3 {[%clk 0:02:55.1]} 26. hxg3 {[%clk
0:02:13.5]} 26... Be5 {[%clk 0:02:46.7]} 27. Kh2 {[%clk 0:02:02.7]} 27... Bb2
{[%clk 0:02:38.9]} 28. a4 {[%clk 0:02:00.1]} 28... Bc3 {[%clk 0:02:37.2]} 29.
Rxc7 {[%clk 0:01:56.3]} 29... Ra6 {[%clk 0:02:24.7]} 30. Rdd7 {[%clk 0:01:38.5]}
30... Rf6 {[%clk 0:02:21.3]} 31. f4 {[%clk 0:01:37]} 31... Be1 {[%clk
0:02:17.7]} 32. Rd8+ {[%clk 0:01:30]} 32... Kg7 {[%clk 0:02:16]} 33. Rxg8+
{[%clk 0:01:28.5]} 33... Kxg8 {[%clk 0:02:15.4]} 34. Nxa5 {[%clk 0:01:25.4]}
34... Bxa5 {[%clk 0:02:12]} 35. Rb7 {[%clk 0:01:22.6]} 35... Be1 {[%clk
0:01:51.8]} 36. Kxh3 {[%clk 0:01:19.8]} 36... Rd6 {[%clk 0:01:48.4]} 37. Rb5
{[%clk 0:01:11.4]} 37... Rd3 {[%clk 0:01:47.1]} 38. c5 {[%clk 0:01:06.4]} 38...
Rxg3+ {[%clk 0:01:43.6]} 39. Kh2 {[%clk 0:01:05.4]} 39... Rc3 {[%clk 0:01:41.9]}
40. b4 {[%clk 0:01:03.3]} 40... Bg3+ {[%clk 0:01:38.7]} 41. Kg2 {[%clk
0:01:01.3]} 41... Bxf4 {[%clk 0:01:37.9]} 42. a5 {[%clk 0:00:59.7]} 42... Bd2
{[%clk 0:01:36.9]} 43. a6 {[%clk 0:00:57.2]} 43... Rb3 {[%clk 0:01:29.1]} 44. a7
{[%clk 0:00:54.4]} 44... Ra3 {[%clk 0:01:16.8]} 45. Ra5 {[%clk 0:00:53.2]} 45...
Rxa5 {[%clk 0:01:08.3]} 46. bxa5 {[%clk 0:00:52]} 1-0

[Event "Live Chess"]
[Site "Chess.com"]
[Date "2023.05.21"]
[Round "-"]
[White "Shepherds_Pie"]
[Black "lateforthesky"]
[Result "0-1"]
[WhiteElo "1946"]
[BlackElo "2127"]
[TimeControl "300"]
[EndTime "2:32:40 PDT"]
[Termination "lateforthesky won by checkmate"]

1. c4 {[%clk 0:04:54.7]} 1... g6 {[%clk 0:04:56.6]} 2. Nc3 {[%clk 0:04:53.1]}
2... Bg7 {[%clk 0:04:55.7]} 3. g3 {[%clk 0:04:52.2]} 3... d6 {[%clk 0:04:52.3]}
4. Bg2 {[%clk 0:04:51.1]} 4... e5 {[%clk 0:04:47.2]} 5. e3 {[%clk 0:04:48.8]}
5... Nf6 {[%clk 0:04:40.1]} 6. Nge2 {[%clk 0:04:47.1]} 6... h5 {[%clk
0:04:34.4]} 7. h4 {[%clk 0:04:45.6]} 7... O-O {[%clk 0:04:32.5]} 8. O-O {[%clk
0:04:43.2]} 8... Nc6 {[%clk 0:04:31.4]} 9. d4 {[%clk 0:04:41.6]} 9... exd4
{[%clk 0:04:29.1]} 10. Nxd4 {[%clk 0:04:40.5]} 10... Ne5 {[%clk 0:04:24.2]} 11.
b3 {[%clk 0:04:30.8]} 11... Bg4 {[%clk 0:04:17.5]} 12. f3 {[%clk 0:04:29]} 12...
Bd7 {[%clk 0:04:13.5]} 13. e4 {[%clk 0:04:26.9]} 13... a6 {[%clk 0:03:58.9]} 14.
Bg5 {[%clk 0:04:24.8]} 14... c6 {[%clk 0:03:52]} 15. Qd2 {[%clk 0:04:21.9]}
15... Qc7 {[%clk 0:03:45.1]} 16. Rad1 {[%clk 0:04:17.5]} 16... Rad8 {[%clk
0:03:39.8]} 17. Nde2 {[%clk 0:04:09.7]} 17... Bc8 {[%clk 0:03:38.5]} 18. Qe3
{[%clk 0:04:06.2]} 18... Rd7 {[%clk 0:03:27.8]} 19. Rc1 {[%clk 0:04:03.4]} 19...
Nh7 {[%clk 0:03:25.1]} 20. Bh6 {[%clk 0:03:57.4]} 20... Re7 {[%clk 0:03:23.8]}
21. Bxg7 {[%clk 0:03:55.5]} 21... Kxg7 {[%clk 0:03:22.7]} 22. Rfd1 {[%clk
0:03:52.2]} 22... f5 {[%clk 0:03:13.7]} 23. Qd4 {[%clk 0:03:40.6]} 23... Nf6
{[%clk 0:02:34.3]} 24. f4 {[%clk 0:03:35.4]} 24... Nf7 {[%clk 0:02:20.2]} 25. c5
{[%clk 0:03:15.6]} 25... dxc5 {[%clk 0:02:12.6]} 26. Qxc5 {[%clk 0:03:13.9]}
26... fxe4 {[%clk 0:02:09.2]} 27. Rd4 {[%clk 0:02:59.1]} 27... b6 {[%clk
0:01:52.9]} 28. Qa3 {[%clk 0:02:57.2]} 28... c5 {[%clk 0:01:49.8]} 29. Rd2
{[%clk 0:02:50.9]} 29... Bf5 {[%clk 0:01:47.2]} 30. Rcd1 {[%clk 0:02:48.9]}
30... Rfe8 {[%clk 0:01:43.4]} 31. Qxa6 {[%clk 0:02:37.8]} 31... e3 {[%clk
0:01:36.4]} 32. Rb2 {[%clk 0:02:36.4]} 32... Nd6 {[%clk 0:01:28.4]} 33. Nd5
{[%clk 0:02:29.4]} 33... Nxd5 {[%clk 0:01:26.6]} 34. Bxd5 {[%clk 0:02:28]} 34...
Ne4 {[%clk 0:01:24]} 35. Qc4 {[%clk 0:02:20.4]} 35... Nd2 {[%clk 0:01:14.6]} 36.
Qc3+ {[%clk 0:02:18.7]} 36... Kh7 {[%clk 0:01:12.5]} 37. Qf6 {[%clk 0:02:06.7]}
37... Qd7 {[%clk 0:01:08.6]} 38. Nc3 {[%clk 0:01:59.9]} 38... Qxd5 {[%clk
0:01:04.9]} 39. Nxd5 {[%clk 0:01:58.3]} 39... e2 {[%clk 0:00:59.5]} 40. Re1
{[%clk 0:01:55.5]} 40... Nf3+ {[%clk 0:00:57.6]} 41. Kf2 {[%clk 0:01:54.2]}
41... Nxe1 {[%clk 0:00:56.2]} 42. Rd2 {[%clk 0:01:43.8]} 42... Nd3+ {[%clk
0:00:53.4]} 43. Rxd3 {[%clk 0:01:29.9]} 43... e1=Q+ {[%clk 0:00:52.1]} 44. Kg2
{[%clk 0:01:26.3]} 44... Re2+ {[%clk 0:00:50]} 45. Kf3 {[%clk 0:01:25]} 45...
Qf2# {[%clk 0:00:48.1]} 0-1

[Event "Live Chess"]
[Site "Chess.com"]
[Date "2023.05.21"]
[Round "-"]
[White "FMOlexandrProhorov"]
[Black "WombatIn_A_Box"]
[Result "1-0"]
[WhiteElo "2172"]
[BlackElo "555"]
[TimeControl "300"]
[EndTime "2:33:02 PDT"]
[Termination "FMOlexandrProhorov won by checkmate"]

1. e4 {[%clk 0:04:55.3]} 1... e5 {[%clk 0:04:59.1]} 2. f4 {[%clk 0:04:54.4]}
2... exf4 {[%clk 0:04:55.7]} 3. Nf3 {[%clk 0:04:53.5]} 3... Nf6 {[%clk
0:04:53.1]} 4. Bc4 {[%clk 0:04:52.3]} 4... Nxe4 {[%clk 0:04:50.6]} 5. O-O {[%clk
0:04:51]} 5... Be7 {[%clk 0:04:46.1]} 6. d4 {[%clk 0:04:50.5]} 6... O-O {[%clk
0:04:43.5]} 7. Bxf4 {[%clk 0:04:49]} 7... Nc6 {[%clk 0:04:36.5]} 8. d5 {[%clk
0:04:46.4]} 8... Nb4 {[%clk 0:04:30]} 9. Bd3 {[%clk 0:04:46.3]} 9... Nxd3 {[%clk
0:04:28.5]} 10. Qxd3 {[%clk 0:04:45.9]} 10... Nc5 {[%clk 0:04:21.7]} 11. Qd2
{[%clk 0:04:38.5]} 11... Ne4 {[%clk 0:04:18.1]} 12. Qd4 {[%clk 0:04:37.4]} 12...
f5 {[%clk 0:04:15.5]} 13. Kh1 {[%clk 0:04:30.2]} 13... c5 {[%clk 0:04:12.5]} 14.
Qe3 {[%clk 0:04:28.1]} 14... g6 {[%clk 0:04:09.3]} 15. Nc3 {[%clk 0:04:23.2]}
15... Nxc3 {[%clk 0:04:07.5]} 16. bxc3 {[%clk 0:04:18.5]} 16... d6 {[%clk
0:04:03.9]} 17. Rae1 {[%clk 0:04:15.2]} 17... Re8 {[%clk 0:03:57.3]} 18. Bh6
{[%clk 0:04:14.8]} 18... Bf6 {[%clk 0:03:50.4]} 19. Qxe8+ {[%clk 0:04:13]} 19...
Qxe8 {[%clk 0:03:45.1]} 20. Rxe8+ {[%clk 0:04:12.9]} 20... Kf7 {[%clk
0:03:43.5]} 21. Rf8+ {[%clk 0:04:11.5]} 21... Ke7 {[%clk 0:03:40.7]} 22. Re1+
{[%clk 0:04:11.2]} 22... Kd7 {[%clk 0:03:39.1]} 23. Rf7+ {[%clk 0:04:10.6]}
23... Kd8 {[%clk 0:03:36.6]} 24. Rxf6 {[%clk 0:04:09.2]} 24... Bd7 {[%clk
0:03:34.1]} 25. Rf8+ {[%clk 0:04:05.7]} 25... Be8 {[%clk 0:03:31]} 26. Rexe8+
{[%clk 0:04:03.9]} 26... Kd7 {[%clk 0:03:29.5]} 27. Rxa8 {[%clk 0:04:01.2]}
27... b6 {[%clk 0:03:27.8]} 28. Rf7# {[%clk 0:04:00]} 1-0

[Event "Live Chess"]
[Site "Chess.com"]
[Date "2023.05.21"]
[Round "-"]
[White "Delacorta"]
[Black "HoarseyHorsey"]
[Result "0-1"]
[WhiteElo "1398"]
[BlackElo "1449"]
[TimeControl "300"]
[EndTime "2:33:08 PDT"]
[Termination "HoarseyHorsey won on time"]

1. d4 {[%clk 0:04:58.4]} 1... Nf6 {[%clk 0:04:57.9]} 2. Nf3 {[%clk 0:04:57.5]}
2... d5 {[%clk 0:04:57.4]} 3. e3 {[%clk 0:04:56.9]} 3... Bg4 {[%clk 0:04:56.1]}
4. Be2 {[%clk 0:04:54.9]} 4... e6 {[%clk 0:04:55.6]} 5. b3 {[%clk 0:04:53.5]}
5... Bd6 {[%clk 0:04:54.1]} 6. Bb2 {[%clk 0:04:51.9]} 6... O-O {[%clk
0:04:52.9]} 7. Nbd2 {[%clk 0:04:50.2]} 7... Nbd7 {[%clk 0:04:51.5]} 8. Ne5
{[%clk 0:04:46.7]} 8... Bxe2 {[%clk 0:04:50]} 9. Qxe2 {[%clk 0:04:44.2]} 9...
Qb8 {[%clk 0:04:41.7]} 10. f4 {[%clk 0:04:41.9]} 10... Bb4 {[%clk 0:04:35.1]}
11. O-O {[%clk 0:04:37.6]} 11... Bxd2 {[%clk 0:04:33.4]} 12. Qxd2 {[%clk
0:04:34.6]} 12... Ne4 {[%clk 0:04:32.7]} 13. Qb4 {[%clk 0:04:06.8]} 13... Nxe5
{[%clk 0:04:29.5]} 14. fxe5 {[%clk 0:04:04.5]} 14... c6 {[%clk 0:04:23.9]} 15.
Qe7 {[%clk 0:03:51.1]} 15... Qc8 {[%clk 0:04:16.8]} 16. Rad1 {[%clk 0:03:21.2]}
16... b6 {[%clk 0:04:08.1]} 17. Rf4 {[%clk 0:03:19.8]} 17... Qe8 {[%clk
0:04:03.3]} 18. Ba3 {[%clk 0:03:01]} 18... a6 {[%clk 0:03:38.6]} 19. Qh4 {[%clk
0:02:22.8]} 19... Qd7 {[%clk 0:03:28.9]} 20. Bxf8 {[%clk 0:02:16.5]} 20... Rxf8
{[%clk 0:03:28.8]} 21. Rxe4 {[%clk 0:02:10.8]} 21... dxe4 {[%clk 0:03:27.6]} 22.
Qxe4 {[%clk 0:02:09.7]} 22... c5 {[%clk 0:03:18.5]} 23. Qf3 {[%clk 0:02:04.4]}
23... Rd8 {[%clk 0:03:04.5]} 24. Rf1 {[%clk 0:01:48.9]} 24... Qc7 {[%clk
0:02:16.8]} 25. Qf4 {[%clk 0:01:23]} 25... Rd7 {[%clk 0:02:12.5]} 26. Qf3 {[%clk
0:01:20.6]} 26... Qb7 {[%clk 0:02:02.3]} 27. Qxb7 {[%clk 0:01:18.5]} 27... Rxb7
{[%clk 0:02:02.2]} 28. dxc5 {[%clk 0:01:17.6]} 28... bxc5 {[%clk 0:02:01.5]} 29.
Rd1 {[%clk 0:01:12.9]} 29... Rb8 {[%clk 0:02:00.4]} 30. Rd6 {[%clk 0:01:10.6]}
30... c4 {[%clk 0:01:52.4]} 31. Rxa6 {[%clk 0:01:04.6]} 31... cxb3 {[%clk
0:01:51]} 32. cxb3 {[%clk 0:01:03]} 32... g6 {[%clk 0:01:49.6]} 33. Kf2 {[%clk
0:01:01.4]} 33... Kg7 {[%clk 0:01:48.8]} 34. Kf3 {[%clk 0:01:00.4]} 34... Rc8
{[%clk 0:01:47.9]} 35. Kf4 {[%clk 0:00:56.3]} 35... Rc2 {[%clk 0:01:46.1]} 36.
Kg3 {[%clk 0:00:52.5]} 36... g5 {[%clk 0:01:37.9]} 37. b4 {[%clk 0:00:50.4]}
37... h5 {[%clk 0:01:35.7]} 38. h4 {[%clk 0:00:47.4]} 38... Kg6 {[%clk 0:01:31]}
39. hxg5 {[%clk 0:00:44.1]} 39... Kxg5 {[%clk 0:01:30.1]} 40. b5 {[%clk
0:00:43.4]} 40... Rb2 {[%clk 0:01:24.8]} 41. b6 {[%clk 0:00:38]} 41... Kf5
{[%clk 0:01:21.2]} 42. Ra7 {[%clk 0:00:31.9]} 42... Rxb6 {[%clk 0:01:17.2]} 43.
Rxf7+ {[%clk 0:00:30.8]} 43... Kxe5 {[%clk 0:01:16.7]} 44. Rh7 {[%clk
0:00:29.5]} 44... Ke4 {[%clk 0:01:10.3]} 45. Rxh5 {[%clk 0:00:27.2]} 45... Kxe3
{[%clk 0:01:08]} 46. Re5+ {[%clk 0:00:24.6]} 46... Kd4 {[%clk 0:01:06.4]} 47.
Re2 {[%clk 0:00:19]} 47... Ra6 {[%clk 0:01:04.8]} 48. Kf2 {[%clk 0:00:17]} 48...
e5 {[%clk 0:01:03.6]} 49. g4 {[%clk 0:00:15.6]} 49... e4 {[%clk 0:01:03.1]} 50.
g5 {[%clk 0:00:14.5]} 50... Kd3 {[%clk 0:00:59.2]} 51. Rb2 {[%clk 0:00:10.6]}
51... Re6 {[%clk 0:00:53.2]} 52. Ke1 {[%clk 0:00:09]} 52... Kc3 {[%clk
0:00:52.1]} 53. Rg2 {[%clk 0:00:06.6]} 53... Rg6 {[%clk 0:00:48.9]} 54. a4
{[%clk 0:00:05.5]} 54... Kc4 {[%clk 0:00:47.8]} 55. Re2 {[%clk 0:00:04]} 55...
Re6 {[%clk 0:00:43.6]} 56. g6 {[%clk 0:00:02.5]} 56... Rxg6 {[%clk 0:00:42.4]}
57. Rxe4+ {[%clk 0:00:02]} 57... Kb3 {[%clk 0:00:40]} 58. a5 {[%clk 0:00:00.3]}
58... Ra6 {[%clk 0:00:38.6]} 0-1

[Event "Live Chess"]
[Site "Chess.com"]
[Date "2023.05.21"]
[Round "-"]
[White "Purple1szed"]
[Black "Berdgross"]
[Result "1-0"]
[WhiteElo "1809"]
[BlackElo "656"]
[TimeControl "300"]
[EndTime "2:33:35 PDT"]
[Termination "Purple1szed won by resignation"]

1. e4 {[%clk 0:04:57.9]} 1... e5 {[%clk 0:04:58.9]} 2. Nf3 {[%clk 0:04:57]} 2...
d6 {[%clk 0:04:57.2]} 3. d4 {[%clk 0:04:55.9]} 3... Bg4 {[%clk 0:04:55.3]} 4.
dxe5 {[%clk 0:04:54.1]} 4... dxe5 {[%clk 0:04:52.9]} 5. Qxd8+ {[%clk 0:04:52.4]}
5... Kxd8 {[%clk 0:04:49.4]} 6. Nxe5 {[%clk 0:04:52.3]} 6... Be6 {[%clk
0:04:44.7]} 7. Nc3 {[%clk 0:04:48.6]} 7... Nc6 {[%clk 0:04:42.9]} 8. Nxc6+
{[%clk 0:04:47.4]} 8... bxc6 {[%clk 0:04:41.7]} 9. Bd3 {[%clk 0:04:47.3]} 9...
Nf6 {[%clk 0:04:38.8]} 10. Be3 {[%clk 0:04:46.2]} 10... Ng4 {[%clk 0:04:36.5]}
11. O-O-O {[%clk 0:04:44.4]} 11... Bb4 {[%clk 0:04:31.4]} 12. Bd4 {[%clk
0:04:21.3]} 12... Bxc3 {[%clk 0:04:27.8]} 13. bxc3 {[%clk 0:04:16.7]} 13... Bxa2
{[%clk 0:04:22.8]} 14. f3 {[%clk 0:04:15.4]} 14... Nf6 {[%clk 0:04:18.8]} 15.
Bxf6+ {[%clk 0:04:14.6]} 15... gxf6 {[%clk 0:04:17.4]} 16. Bc4+ {[%clk
0:04:14.3]} 16... Kc8 {[%clk 0:04:10.2]} 17. Bxa2 {[%clk 0:04:13.6]} 1-0

[Event "Live Chess"]
[Site "Chess.com"]
[Date "2023.05.21"]
[Round "-"]
[White "Doge_Dandolo"]
[Black "Keithdfg"]
[Result "1-0"]
[WhiteElo "1868"]
[BlackElo "1511"]
[TimeControl "300"]
[EndTime "2:33:41 PDT"]
[Termination "Doge_Dandolo won by resignation"]

1. Nf3 {[%clk 0:04:58.9]} 1... d6 {[%clk 0:04:59.6]} 2. c4 {[%clk 0:04:58.1]}
2... Bg4 {[%clk 0:04:58.7]} 3. Nc3 {[%clk 0:04:54.4]} 3... Nd7 {[%clk
0:04:57.5]} 4. Qb3 {[%clk 0:04:52.3]} 4... Qc8 {[%clk 0:04:54.1]} 5. g3 {[%clk
0:04:51]} 5... Bxf3 {[%clk 0:04:52.2]} 6. exf3 {[%clk 0:04:50.1]} 6... c6 {[%clk
0:04:50.1]} 7. Bg2 {[%clk 0:04:48.9]} 7... e5 {[%clk 0:04:48.8]} 8. O-O {[%clk
0:04:47.3]} 8... Ngf6 {[%clk 0:04:47.6]} 9. d3 {[%clk 0:04:44.9]} 9... Be7
{[%clk 0:04:46.5]} 10. Re1 {[%clk 0:04:42.2]} 10... O-O {[%clk 0:04:46.2]} 11.
f4 {[%clk 0:04:41.1]} 11... Re8 {[%clk 0:04:44.6]} 12. fxe5 {[%clk 0:04:38.9]}
12... dxe5 {[%clk 0:04:43.6]} 13. Bd2 {[%clk 0:04:31.9]} 13... Nc5 {[%clk
0:04:42]} 14. Qc2 {[%clk 0:04:29.9]} 14... Qf5 {[%clk 0:04:40.3]} 15. Ne4 {[%clk
0:04:27]} 15... Rad8 {[%clk 0:04:37.2]} 16. Nxf6+ {[%clk 0:04:22.7]} 16... Bxf6
{[%clk 0:04:35.3]} 17. Be4 {[%clk 0:04:17.8]} 17... Qd7 {[%clk 0:04:19.4]} 18.
Rad1 {[%clk 0:04:14.5]} 18... Nxd3 {[%clk 0:04:15.1]} 19. Bxd3 {[%clk
0:04:10.7]} 19... Qxd3 {[%clk 0:04:13.9]} 20. Qxd3 {[%clk 0:04:08.5]} 20... Rxd3
{[%clk 0:04:12.5]} 21. Ba5 {[%clk 0:04:06.5]} 21... Rxd1 {[%clk 0:04:07.9]} 22.
Rxd1 {[%clk 0:04:04.8]} 22... b6 {[%clk 0:04:06.6]} 23. Bc3 {[%clk 0:04:02.8]}
23... e4 {[%clk 0:04:00.7]} 24. Bxf6 {[%clk 0:03:59.9]} 24... gxf6 {[%clk
0:03:59.9]} 25. Rd7 {[%clk 0:03:59.2]} 25... e3 {[%clk 0:03:49.7]} 26. fxe3
{[%clk 0:03:56.5]} 26... Rxe3 {[%clk 0:03:48.6]} 27. Kf2 {[%clk 0:03:54.2]}
27... Re4 {[%clk 0:03:43.2]} 28. b3 {[%clk 0:03:51.8]} 28... b5 {[%clk
0:03:42.2]} 29. cxb5 {[%clk 0:03:49]} 29... cxb5 {[%clk 0:03:41]} 30. Rxa7
{[%clk 0:03:48.2]} 30... Rd4 {[%clk 0:03:36.3]} 31. Ke3 {[%clk 0:03:44]} 31...
Rd1 {[%clk 0:03:34.8]} 32. Ra5 {[%clk 0:03:36.3]} 32... Ra1 {[%clk 0:03:31.5]}
33. Kd4 {[%clk 0:03:31.9]} 1-0

[Event "Live Chess"]
[Site "Chess.com"]
[Date "2023.05.21"]
[Round "-"]
[White "DoYouLikeCurry"]
[Black "Tushinskiy"]
[Result "0-1"]
[WhiteElo "1377"]
[BlackElo "2155"]
[TimeControl "300"]
[EndTime "2:33:46 PDT"]
[Termination "Tushinskiy won by resignation"]

1. e4 {[%clk 0:04:57.7]} 1... e5 {[%clk 0:04:59]} 2. Nc3 {[%clk 0:04:56.4]} 2...
d6 {[%clk 0:04:58.9]} 3. Bc4 {[%clk 0:04:53.5]} 3... Nf6 {[%clk 0:04:57.2]} 4.
d3 {[%clk 0:04:51.4]} 4... Be7 {[%clk 0:04:56.3]} 5. f4 {[%clk 0:04:50]} 5...
O-O {[%clk 0:04:55.4]} 6. Nf3 {[%clk 0:04:47.7]} 6... Bg4 {[%clk 0:04:54.5]} 7.
O-O {[%clk 0:04:44.9]} 7... Nbd7 {[%clk 0:04:48]} 8. h3 {[%clk 0:04:43]} 8...
Bxf3 {[%clk 0:04:46.4]} 9. Qxf3 {[%clk 0:04:42.9]} 9... c6 {[%clk 0:04:46]} 10.
fxe5 {[%clk 0:04:42.1]} 10... Nxe5 {[%clk 0:04:44.2]} 11. Qd1 {[%clk 0:04:34]}
11... Nxc4 {[%clk 0:04:43]} 12. dxc4 {[%clk 0:04:33.9]} 12... Qc7 {[%clk
0:04:39.6]} 13. Qd3 {[%clk 0:04:32.6]} 13... Rad8 {[%clk 0:04:37.4]} 14. Bg5
{[%clk 0:04:22.4]} 14... Rfe8 {[%clk 0:04:36.2]} 15. Rf3 {[%clk 0:04:18.6]}
15... Qb6+ {[%clk 0:04:32.6]} 16. Kh1 {[%clk 0:04:13.8]} 16... Qxb2 {[%clk
0:04:31.4]} 17. Raf1 {[%clk 0:04:13.1]} 17... d5 {[%clk 0:04:23.4]} 18. cxd5
{[%clk 0:04:06.2]} 18... cxd5 {[%clk 0:04:23.3]} 19. Bxf6 {[%clk 0:03:54.6]}
19... dxe4 {[%clk 0:04:22.3]} 20. Qxe4 {[%clk 0:03:48.5]} 20... Bxf6 {[%clk
0:04:21.3]} 21. Rxf6 {[%clk 0:03:38]} 21... Rxe4 {[%clk 0:04:18.1]} 22. Nxe4
{[%clk 0:03:34.1]} 22... gxf6 {[%clk 0:04:16.5]} 23. Nxf6+ {[%clk 0:03:30]}
23... Kg7 {[%clk 0:04:15.5]} 24. Nh5+ {[%clk 0:03:24.4]} 24... Kf8 {[%clk
0:04:14.4]} 0-1

[Event "Live Chess"]
[Site "Chess.com"]
[Date "2023.05.21"]
[Round "-"]
[White "Denz14"]
[Black "Ian-Morley"]
[Result "0-1"]
[WhiteElo "1041"]
[BlackElo "1085"]
[TimeControl "300"]
[EndTime "2:33:49 PDT"]
[Termination "Ian-Morley won by resignation"]

1. d4 {[%clk 0:04:56.5]} 1... e5 {[%clk 0:04:58.8]} 2. dxe5 {[%clk 0:04:54.5]}
2... Nc6 {[%clk 0:04:57.4]} 3. Nf3 {[%clk 0:04:52.3]} 3... Qe7 {[%clk
0:04:55.3]} 4. Bf4 {[%clk 0:04:48.3]} 4... Qb4+ {[%clk 0:04:53.8]} 5. Qd2 {[%clk
0:04:41.5]} 5... Qxb2 {[%clk 0:04:50.2]} 6. Nc3 {[%clk 0:04:30.3]} 6... Qxa1+
{[%clk 0:04:47.3]} 7. Qc1 {[%clk 0:04:29.9]} 7... Qxc3+ {[%clk 0:04:45.3]} 8.
Bd2 {[%clk 0:04:26.7]} 8... Qc4 {[%clk 0:04:29.2]} 9. Qb2 {[%clk 0:04:26.6]}
9... Bb4 {[%clk 0:04:21.9]} 10. e4 {[%clk 0:04:24.5]} 10... Bxd2+ {[%clk
0:04:18]} 11. Nxd2 {[%clk 0:04:21.8]} 11... Qb4 {[%clk 0:04:15.2]} 12. Qxb4
{[%clk 0:04:17.2]} 12... Nxb4 {[%clk 0:04:13.9]} 0-1